bitfinex/quotes_SOLUSD_20250809
["timestamp","ask_amount","ask_price","bid_price","bid_amount"]
[1754778358504,4.86953408,182.53,182.47,52.60953408]
[1754778358700,4.86953408,182.53,182.48,5.58953408]
[1754778358893,5.47825134,182.54,182.48,5.58953408]
[1754778358894,10.34778542,182.54,182.49,0.72]
[1754778359088,5.47825134,182.54,182.49,5.58953408]
[1754778359311,5.47825134,182.54,182.5,0.67]
[1754778359690,4.86953408,182.53,182.48,0.67]
[1754778359900,10.34778542,182.54,182.48,0.67]
[1754778360091,10.34778542,182.54,182.48,5.53953408]
[1754778360310,4.86953408,182.52,182.47,51.88953408]
[1754778360517,4.86953408,182.5,182.46,46.9]
[1754778360808,4.86953408,182.51,182.46,47.57]
[1754778360998,4.86953408,182.51,182.46,52.43953408]
[1754778361382,0.2,182.53,182.46,46.9]
[1754778361714,5.47915182,182.51,182.47,0.67]
[1754778362411,4.86953408,182.48,182.42,4.86953408]
[1754778362615,5.47915182,182.51,182.46,4.86953408]
[1754778362826,5.47915182,182.51,182.47,4.86953408]
[1754778363120,5.47915182,182.51,182.48,0.67]
[1754778363330,5.47855147,182.53,182.49,0.67]
[1754778363528,5.47855147,182.53,182.5,0.67]
[1754778364815,0.03,182.54,182.52,4.86953408]
[1754778365189,0.03,182.54,182.53,0.67]
[1754778365494,0.03,182.54,182.48,47.27]
[1754778365495,10.57778542,182.54,182.48,47.27]
[1754778366018,10.57778542,182.54,182.48,52.13953408]
[1754778366198,10.57778542,182.54,182.48,5.53953408]
[1754778366402,4.86953408,182.53,182.48,0.67]
[1754778366715,4.86953408,182.49,182.45,0.67]
[1754778366903,4.86953408,182.49,182.45,16.45233]
[1754778366904,4.86953408,182.48,182.45,16.45233]
[1754778367209,4.86953408,182.5,182.45,4.86953408]
[1754778367409,19.20387969,182.54,182.39,26.0]
[1754778367410,4.86953408,182.48,182.43,0.67]
[1754778367595,15.10621557,182.51,182.41,4.86953408]
[1754778367786,0.2,182.47,182.37,5.53953408]
[1754778367991,4.86953408,182.43,182.38,4.35735528]
[1754778368210,10.35018737,182.46,182.39,4.35735528]
[1754778368394,10.35018737,182.46,182.34,62.976842]
[1754778368395,10.35018737,182.46,182.41,4.86953408]
[1754778368597,5.48065329,182.46,182.42,0.67]
[1754778368814,5.48065329,182.46,182.43,0.67]
[1754778369014,13.41492453,182.46,182.43,0.67]
[1754778369616,5.48065329,182.46,182.43,0.67]
[1754778370413,13.41492453,182.46,182.43,0.67]
[1754778370991,5.48065329,182.46,182.43,0.67]
[1754778371218,13.41492453,182.46,182.43,0.67]
[1754778371404,13.41492453,182.46,182.41,8.60427124]
[1754778371720,13.41492453,182.46,182.42,4.36892664]
[1754778371918,13.41492453,182.46,182.43,3.69892664]
[1754778372322,13.41492453,182.46,182.42,0.67]
[1754778372617,13.41492453,182.46,182.43,3.70193568]
[1754778372813,7.93427124,182.47,182.42,0.67]
[1754778373017,7.93427124,182.44,182.43,3.70193272]
[1754778373200,0.1,182.44,182.37,16.51955]
[1754778373403,7.93427124,182.38,182.37,16.51955]
[1754778373618,8.03427124,182.38,182.37,0.06]
[1754778374116,15.96854248,182.38,182.37,1e-08]
[1754778374324,57.07475805,182.38,182.37,1e-08]
[1754778374507,61.50787105,182.38,182.25,0.67]
[1754778374702,19.19280543,182.36,182.25,0.67]
[1754778374925,7.93427124,182.28,182.25,0.67]
[1754778375096,41.20621557,182.35,182.24,0.06]
[1754778375420,0.1,182.34,182.26,0.73]
[1754778375628,7.93427124,182.3,182.27,0.67]
[1754778375926,7.93427124,182.29,182.27,0.67]
[1754778376099,7.93427124,182.28,182.26,0.06]
[1754778376294,0.1,182.31,182.26,0.06]
[1754778376295,7.93427124,182.27,182.26,0.06]
[1754778376505,23.14048681,182.27,182.24,0.06]
[1754778376827,13.42123968,182.25,182.24,0.06]
[1754778377128,75.52745525,182.25,182.24,0.06]
[1754778377325,75.62745525,182.25,182.24,0.06]
[1754778377525,77.82507625,182.25,182.24,0.06]
[1754778378627,15.10621557,182.24,182.22,0.06]
[1754778378797,15.10621557,182.24,182.06,2.8652215]
[1754778378798,20.59438855,182.21,182.11,0.67]
[1754778379001,20.59438855,182.21,182.05,0.2]
[1754778379002,28.52865979,182.21,182.12,0.67]
[1754778379308,28.62865979,182.21,182.12,0.67]
[1754778379505,5.48817298,182.21,182.14,7.93427124]
[1754778379702,60.26244422,182.21,182.17,0.67]
[1754778379905,54.77427124,182.21,182.17,0.67]
[1754778381511,46.84,182.21,182.2,0.73]
[1754778381709,46.72,182.22,182.2,0.73]
[1754778382019,46.72,182.22,182.21,0.67]
[1754778383313,54.65427124,182.22,182.2,0.06]
[1754778383515,8.03427124,182.21,182.2,0.06]
[1754778383929,7.93427124,182.21,182.2,0.06]
[1754778384931,13.42244422,182.21,182.2,0.06]
[1754778385549,0.1,182.32,182.2,8.66427124]
[1754778385841,7.93427124,182.29,182.24,7.93427124]
[1754778386001,0.03,182.28,182.25,0.67]
[1754778386207,0.03,182.28,182.26,7.93427124]
[1754778386419,0.03,182.28,182.26,8.60427124]
[1754778386736,0.03,182.28,182.27,0.67]
[1754778387640,0.03,182.28,182.27,8.60427124]
[1754778387843,0.03,182.28,182.27,0.67]
[1754778388312,0.03,182.28,182.27,8.60427124]
[1754778388831,46.68,182.31,182.27,8.60427124]
[1754778388832,5.48427993,182.34,182.27,8.60427124]
[1754778389014,7.93427124,182.36,182.31,7.93427124]
[1754778389333,46.68,182.35,182.32,8.62427124]
[1754778389512,46.68,182.35,182.33,0.69]
[1754778389719,46.68,182.35,182.34,0.69]
[1754778390106,46.68,182.35,182.32,7.93427124]
[1754778390306,52.16417612,182.35,182.32,8.62427124]
[1754778392035,52.16417612,182.35,182.32,0.69]
[1754778393311,52.16417612,182.35,182.26,26.0]
[1754778393612,7.93427124,182.32,182.27,7.93427124]
[1754778393826,52.29417612,182.35,182.25,7.93427124]
[1754778393827,46.46,182.31,182.25,7.93427124]
[1754778394034,13.41973476,182.3,182.27,0.69]
[1754778394353,13.41973476,182.3,182.25,7.93427124]
[1754778394546,5.48546352,182.3,182.27,0.69]
[1754778394936,5.48546352,182.3,182.26,7.93427124]
[1754778395145,5.48546352,182.3,182.26,8.62427124]
[1754778395330,13.41973476,182.3,182.26,0.69]
[1754778395738,5.48546352,182.3,182.25,7.93427124]
[1754778395944,7.93427124,182.29,182.24,7.93427124]
[1754778396141,7.93427124,182.27,182.23,0.69]
[1754778396437,46.24,182.26,182.24,0.69]
[1754778396643,7.93427124,182.28,182.25,0.69]
[1754778396827,46.22,182.26,182.24,7.93427124]
[1754778397435,46.22,182.26,182.25,0.69]
[1754778397626,13.42022999,182.29,182.25,0.69]
[1754778397832,46.12,182.28,182.25,0.69]
[1754778398230,7.93427124,182.27,182.22,8.68427124]
[1754778398455,46.12,182.28,182.23,0.69]
[1754778398951,46.12,182.28,182.24,0.69]
[1754778399260,54.05427124,182.28,182.24,0.69]
[1754778399749,13.42118356,182.26,182.22,0.06]
[1754778400140,5.48691232,182.26,182.22,0.06]
[1754778400337,5.61691232,182.26,182.22,0.06]
[1754778400542,7.93427124,182.25,182.22,0.75]
[1754778400759,53.95427124,182.24,182.22,0.75]
[1754778400954,46.02,182.24,182.22,0.06]
[1754778401459,7.93427124,182.23,182.22,0.06]
[1754778402160,13.42184189,182.23,182.22,0.06]
[1754778403149,53.95427124,182.24,182.22,0.75]
[1754778403327,46.02,182.24,182.22,0.75]
[1754778403956,46.02,182.24,182.23,0.69]
[1754778404642,5.48678128,182.26,182.23,0.69]
[1754778404954,45.94,182.25,182.23,0.69]
[1754778405257,45.94,182.25,182.24,0.69]
[1754778407589,45.94,182.25,182.22,0.75]
[1754778407762,45.94,182.25,182.23,0.69]
[1754778408369,45.94,182.25,182.24,8.62427124]
[1754778408677,45.94,182.25,182.24,0.69]
[1754778409599,45.94,182.25,182.22,5.54779601]
[1754778409600,45.94,182.25,182.22,0.75]
[1754778409985,45.94,182.25,182.22,0.06]
[1754778410184,51.42703385,182.25,182.22,0.75]
[1754778410900,45.94,182.25,182.22,0.75]
[1754778411198,45.94,182.25,182.23,0.69]
[1754778412576,45.94,182.25,182.24,0.69]
[1754778412910,45.58,182.25,182.24,0.69]
[1754778413401,45.58,182.25,182.24,8.62427124]
[1754778413603,13.42017631,182.29,182.24,8.54934858]
[1754778413780,45.52,182.28,182.22,5.54785271]
[1754778414183,45.52,182.28,182.24,7.93427124]
[1754778414995,45.52,182.28,182.22,26.06]
[1754778415199,45.52,182.28,182.24,7.93427124]
[1754778415591,45.52,182.28,182.25,0.69]
[1754778415804,45.52,182.28,182.26,0.69]
[1754778416303,45.52,182.28,182.22,7.99427124]
[1754778416304,51.20608309,182.28,182.22,7.99427124]
[1754778416500,59.14035433,182.28,182.23,7.93427124]
[1754778416893,59.14035433,182.28,182.23,8.62427124]
[1754778417401,45.52,182.28,182.25,7.93427124]
[1754778417714,45.52,182.28,182.26,0.69]
[1754778418506,51.00609208,182.28,182.24,0.69]
[1754778418684,45.52,182.28,182.24,8.62427124]
[1754778418886,45.52,182.28,182.24,0.69]
[1754778419112,45.52,182.28,182.24,8.62427124]
[1754778419290,45.52,182.28,182.22,5.54779773]
[1754778419291,7.93427124,182.27,182.22,0.06]
[1754778419618,8.13427124,182.27,182.22,0.06]
[1754778420191,51.00617122,182.28,182.23,7.93427124]
[1754778420415,58.94044246,182.28,182.23,8.62427124]
[1754778420726,58.94044246,182.28,182.23,7.93427124]
[1754778420727,45.32,182.27,182.23,7.93427124]
[1754778420888,45.32,182.27,182.23,8.62427124]
[1754778421282,50.80649117,182.27,182.23,0.69]
[1754778421489,50.80649117,182.27,182.23,8.62427124]
[1754778421812,0.2,182.3,182.23,7.93427124]
[1754778422017,45.32,182.29,182.24,8.62427124]
[1754778422214,45.32,182.29,182.24,0.69]
[1754778422510,50.80576444,182.29,182.24,8.62427124]
[1754778422684,50.80576444,182.29,182.24,0.69]
[1754778422891,58.74003568,182.29,182.24,0.69]
[1754778423508,58.94003568,182.29,182.23,7.93427124]
[1754778424004,0.2,182.28,182.22,7.99427124]
[1754778424204,7.93427124,182.27,182.22,7.99427124]
[1754778424414,45.18,182.26,182.22,7.99427124]
[1754778425018,7.93427124,182.24,182.22,0.06]
[1754778425213,45.16,182.23,182.22,0.06]
[1754778425405,58.78184189,182.23,182.22,0.06]
[1754778425808,58.58184189,182.23,182.22,0.06]
[1754778426223,45.16,182.23,182.22,0.06]
[1754778426527,58.58184189,182.23,182.22,0.06]
[1754778426823,58.78184189,182.23,182.22,0.06]
[1754778427523,45.16,182.23,182.22,0.06]
[1754778427730,53.09427124,182.23,182.22,0.06]
[1754778428814,58.58184189,182.23,182.22,0.06]
[1754778429416,50.84757065,182.23,182.22,0.06]
[1754778429726,45.16,182.23,182.22,0.06]
[1754778429928,45.16,182.23,182.22,0.75]
[1754778430230,45.16,182.23,182.22,8.68427124]
[1754778430616,45.16,182.23,182.22,0.75]
[1754778430939,45.16,182.23,182.22,8.68427124]
[1754778431245,45.16,182.23,182.22,0.75]
[1754778431411,45.16,182.23,182.22,8.68427124]
[1754778432644,44.86,182.25,182.22,8.68427124]
[1754778432812,44.86,182.25,182.24,7.93427124]
[1754778433015,44.86,182.25,182.23,8.62427124]
[1754778433621,44.86,182.25,182.23,7.93427124]
[1754778434141,50.34701743,182.25,182.22,0.06]
[1754778434326,44.86,182.25,182.22,8.68427124]
[1754778434634,44.86,182.25,182.22,0.06]
[1754778434937,44.86,182.25,182.22,7.99427124]
[1754778435519,44.86,182.25,182.23,0.69]
[1754778435824,44.86,182.25,182.24,8.62427124]
[1754778436039,0.03,182.27,182.24,8.62427124]
[1754778436212,44.76,182.26,182.25,8.62427124]
[1754778436631,44.76,182.26,182.25,5.56712912]
[1754778437532,0.03,182.27,182.25,11.05409756]
[1754778437738,0.03,182.27,182.26,5.56712912]
[1754778438321,0.03,182.27,182.26,0.69]
[1754778438530,0.03,182.27,182.26,5.56712912]
[1754778439545,0.03,182.27,182.26,0.69]
[1754778439726,0.03,182.27,182.26,5.56712912]
[1754778440649,0.03,182.27,182.26,37.05379651]
[1754778441058,0.03,182.27,182.26,53.52238251]
[1754778442060,0.03,182.27,182.26,68.62859808]
[1754778442750,0.03,182.27,182.26,42.62859808]
[1754778443644,0.03,182.27,182.26,22.03571512]
[1754778443847,0.03,182.27,182.26,26.69]
[1754778444024,0.03,182.27,182.26,33.76306112]
[1754778444536,0.03,182.27,182.26,39.24972851]
[1754778445724,0.03,182.27,182.26,37.05379651]
[1754778446141,0.03,182.27,182.26,39.24972851]
[1754778446739,0.03,182.27,182.26,54.35594408]
[1754778447950,0.03,182.29,182.27,15.10621557]
[1754778448148,0.03,182.29,182.28,4.87712912]
[1754778448357,0.03,182.29,182.28,31.56712912]
[1754778448928,0.03,182.29,182.28,37.05319451]
[1754778450352,0.03,182.29,182.28,39.24876551]
[1754778452375,0.03,182.29,182.28,33.07270012]
[1754778452834,0.03,182.29,182.28,36.36319451]
[1754778453155,0.03,182.29,182.28,37.05319451]
[1754778455959,0.03,182.29,182.28,95.99941008]
[1754778460269,0.03,182.31,182.29,15.10621557]
[1754778460470,0.03,182.31,182.3,89.72334469]
[1754778460653,0.03,182.31,182.3,90.41334469]
[1754778461483,0.03,182.31,182.3,95.89880821]
[1754778462362,0.03,182.32,182.31,15.10621557]
[1754778462560,0.03,182.32,182.31,19.98334469]
[1754778462769,0.03,182.32,182.31,20.67334469]
[1754778464084,0.03,182.35,182.34,26.0]
[1754778464384,0.03,182.35,182.34,79.33425824]
[1754778464584,0.03,182.35,182.34,80.02425824]
[1754778465489,0.03,182.35,182.34,85.50851841]
[1754778466087,0.03,182.35,182.34,90.98981441]
[1754778466979,0.2,182.42,182.41,4.87712912]
[1754778468253,0.2,182.42,182.36,5.481296]
[1754778468476,0.2,182.42,182.41,4.87712912]
[1754778471059,0.2,182.45,182.41,4.87712912]
[1754778471360,0.2,182.45,182.44,4.87712912]
[1754778471557,53.9371517,182.49,182.44,4.87712912]
[1754778471762,0.2,182.47,182.44,4.87712912]
[1754778471961,0.2,182.46,182.44,4.87712912]
[1754778472277,0.2,182.49,182.45,4.87712912]
[1754778472477,0.2,182.48,182.46,4.87712912]
[1754778473882,5.07712912,182.51,182.44,5.48116766]
[1754778474076,0.2,182.51,182.44,6.17116766]
[1754778474264,0.03,182.48,182.47,4.87712912]
[1754778475072,0.03,182.48,182.47,5.56712912]
[1754778475274,0.03,182.48,182.47,11.04748205]
[1754778477168,0.03,182.48,182.46,5.48063634]
[1754778477485,0.03,182.48,182.47,4.87712912]
[1754778477663,0.03,182.48,182.47,5.56712912]
[1754778479481,0.03,182.48,182.47,11.04748205]
[1754778479788,0.03,182.48,182.47,14.68163256]
[1754778480168,0.03,182.48,182.47,29.78784813]
[1754778480585,0.03,182.48,182.47,72.70784813]
[1754778481890,0.03,182.48,182.47,72.70717368]
[1754778484992,0.03,182.48,182.47,74.90033668]
[1754778490704,0.03,182.48,182.47,74.88033668]
[1754778490869,0.03,182.48,182.47,31.98033668]
[1754778491071,0.03,182.48,182.47,74.88033668]
[1754778491595,0.03,182.48,182.47,31.98033668]
[1754778491784,0.03,182.48,182.47,74.88033668]
[1754778493703,0.03,182.48,182.47,74.8731581]
[1754778498294,0.03,182.48,182.47,11.29981341]
[1754778498498,0.03,182.48,182.47,5.81946048]
[1754778498682,5.7100526,182.48,182.47,2.193163]
[1754778499000,5.7100526,182.48,182.44,4.87712912]
[1754778499203,0.2,182.47,182.45,4.87712912]
[1754778499996,5.51006472,182.48,182.45,4.87712912]
[1754778500208,5.07712912,182.47,182.38,5.48303767]
[1754778500380,4.87712912,182.43,182.39,3.6380781]
[1754778500583,0.2,182.42,182.39,8.51520722]
[1754778500793,0.2,182.42,182.39,4.87712912]
[1754778501105,4.87712912,182.45,182.39,4.87712912]
[1754778501106,5.4813486,182.44,182.39,4.87712912]
[1754778501277,0.2,182.41,182.36,26.0]
[1754778501486,0.2,182.41,182.39,4.87712912]
[1754778501693,0.2,182.41,182.36,26.68]
[1754778501907,0.2,182.41,182.39,4.87712912]
[1754778503303,0.2,182.41,182.36,32.16359609]
[1754778503304,0.2,182.41,182.38,4.87712912]
[1754778503600,0.2,182.4,182.36,4.87712912]
[1754778503786,0.2,182.4,182.37,3.64573497]
[1754778503991,0.2,182.4,182.37,4.87712912]
[1754778504188,0.2,182.4,182.38,3.64599869]
[1754778505291,4.87712912,182.41,182.35,0.06]
[1754778505491,0.2,182.39,182.35,8.58597457]
[1754778505812,0.2,182.42,182.36,4.32930754]
[1754778505988,0.2,182.42,182.37,3.64930754]
[1754778506189,0.2,182.42,182.39,4.87712912]
[1754778507207,10.55850464,182.44,182.39,4.87712912]
[1754778507408,0.2,182.44,182.41,4.87712912]
[1754778507609,0.2,182.44,182.42,4.87712912]
[1754778507912,11.67321866,182.48,182.43,4.87712912]
[1754778508100,6.193135,182.48,182.46,4.87712912]
[1754778508304,6.193135,182.48,182.47,4.87712912]
[1754778508510,0.03,182.48,182.44,0.68]
[1754778508824,0.03,182.48,182.46,4.87712912]
[1754778509813,5.07712912,182.47,182.37,0.68]
[1754778510017,4.87712912,182.45,182.4,4.87712912]
[1754778510197,5.07712912,182.46,182.41,3.65030617]
[1754778510712,5.07712912,182.46,182.41,9.20743529]
[1754778510900,5.07712912,182.46,182.41,5.55712912]
[1754778510901,10.55800621,182.46,182.41,5.55712912]
[1754778511101,0.2,182.45,182.41,4.87712912]
[1754778511304,10.35800621,182.46,182.41,4.87712912]
[1754778511608,0.2,182.45,182.41,4.87712912]
[1754778511808,0.1,182.44,182.35,0.06]
[1754778512011,26.0,182.43,182.35,0.06]
[1754778512216,0.1,182.42,182.37,4.87712912]
[1754778512419,0.1,182.42,182.38,4.87712912]
[1754778512729,0.1,182.42,182.37,4.87712912]
[1754778512918,0.1,182.42,182.38,4.87712912]
[1754778513095,5.48188228,182.42,182.38,4.87712912]
[1754778513906,5.58188228,182.42,182.38,4.87712912]
[1754778514297,5.48188228,182.42,182.35,6.22385266]
[1754778514499,5.48188228,182.42,182.37,4.87712912]
[1754778514712,5.48188228,182.42,182.35,0.06]
[1754778514713,4.87712912,182.39,182.35,0.06]
[1754778515012,5.48294728,182.39,182.35,3.71347141]
[1754778515510,5.48294728,182.39,182.35,8.59060053]
[1754778515818,5.48185505,182.42,182.37,4.87712912]
[1754778516116,5.48185505,182.42,182.37,5.55712912]
[1754778516619,5.48185505,182.42,182.38,4.87712912]
[1754778516791,10.35871259,182.43,182.38,5.55712912]
[1754778516991,10.35871259,182.43,182.38,0.68]
[1754778517292,10.45871259,182.43,182.38,5.55712912]
[1754778517703,42.86,182.45,182.41,4.87712912]
[1754778517903,53.21812945,182.45,182.4,4.87712912]
[1754778518108,48.34100033,182.45,182.41,4.87712912]
[1754778518312,48.34100033,182.45,182.41,5.55712912]
[1754778518713,5.48100033,182.45,182.41,5.55712912]
[1754778518995,5.51065329,182.46,182.41,5.61712912]
[1754778519404,5.51065329,182.46,182.42,4.87712912]
[1754778519616,5.51065329,182.46,182.41,4.93712912]
[1754778519808,5.51065329,182.46,182.41,5.61712912]
[1754778520817,5.61065329,182.46,182.42,4.87712912]
[1754778521113,5.61065329,182.46,182.41,5.61712912]
[1754778521722,5.51065329,182.46,182.41,5.61712912]
[1754778521920,5.51065329,182.46,182.41,0.74]
[1754778522138,5.51065329,182.46,182.43,4.87712912]
[1754778522344,0.03,182.46,182.44,4.87712912]
[1754778523908,0.03,182.46,182.43,0.68]
[1754778524111,0.03,182.46,182.42,4.87712912]
[1754778524303,5.00712912,182.46,182.41,0.06]
[1754778524509,5.00712912,182.46,182.41,4.93712912]
[1754778525113,0.1,182.45,182.41,0.06]
[1754778525400,5.48125411,182.44,182.41,0.06]
[1754778525823,5.51070098,182.46,182.42,4.87712912]
[1754778526129,5.51070098,182.46,182.42,5.55712912]
[1754778526328,0.03,182.46,182.44,4.87712912]
[1754778526627,0.03,182.46,182.44,5.55712912]
[1754778528138,0.03,182.46,182.45,5.55712912]
[1754778529327,0.03,182.46,182.45,0.68]
[1754778529517,0.03,182.46,182.45,5.55712912]
[1754778534808,0.03,182.46,182.45,11.0380828]
[1754778535408,0.03,182.46,182.45,5.55712912]
[1754778535610,0.03,182.46,182.41,0.06]
[1754778535817,0.03,182.46,182.42,0.68]
[1754778536041,0.03,182.46,182.43,3.66688004]
[1754778536231,0.03,182.46,182.41,4.93712912]
[1754778536415,0.13,182.46,182.42,3.66857391]
[1754778536738,47.75712912,182.45,182.41,0.06]
[1754778536919,42.88,182.45,182.41,0.06]
[1754778537241,42.78,182.45,182.41,3.73063352]
[1754778537535,42.78,182.45,182.42,0.68]
[1754778540208,42.78,182.45,182.43,3.67340672]
[1754778540610,48.26095686,182.45,182.43,3.67340672]
[1754778540813,42.78,182.45,182.41,4.93712912]
[1754778541042,42.78,182.45,182.43,0.7]
[1754778541725,42.81,182.45,182.44,0.7]
[1754778541913,47.78712912,182.45,182.41,0.06]
[1754778542115,0.1,182.44,182.41,0.06]
[1754778542424,4.87712912,182.42,182.41,0.06]
[1754778542641,10.35898417,182.42,182.41,0.06]
[1754778542825,10.35898417,182.42,182.39,0.06]
[1754778542826,30.87712912,182.4,182.39,0.06]
[1754778543137,73.63712912,182.4,182.39,0.06]
[1754778543343,73.67712912,182.4,182.39,0.06]
[1754778543514,73.67712912,182.4,182.39,0.02]
[1754778544729,79.15958526,182.4,182.39,0.02]
[1754778546540,79.11958526,182.4,182.39,0.02]
[1754778547422,74.24245614,182.4,182.39,0.02]
[1754778547619,79.11958526,182.4,182.39,0.02]
[1754778549631,74.24245614,182.4,182.39,0.02]
[1754778549835,79.11958526,182.4,182.39,0.02]
[1754778551746,36.35958526,182.4,182.39,0.02]
[1754778551938,31.48245614,182.4,182.39,0.72]
[1754778552146,68.74,182.4,182.39,0.72]
[1754778552330,42.74,182.4,182.39,0.72]
[1754778553614,48.22245614,182.4,182.39,0.72]
[1754778553819,48.22245614,182.4,182.39,0.02]
[1754778554031,42.74,182.4,182.39,0.02]
[1754778554243,42.74,182.4,182.39,0.72]
[1754778555039,42.74,182.4,182.39,4.39847657]
[1754778555347,48.22245614,182.4,182.39,4.39847657]
[1754778555535,48.22245614,182.4,182.39,4.39932639]
[1754778556130,42.74,182.4,182.39,4.39932639]
[1754778558127,42.24,182.4,182.39,4.39932639]
[1754778559230,5.48161262,182.43,182.39,9.27645551]
[1754778559428,42.7,182.42,182.4,0.7]
[1754778559630,42.7,182.42,182.41,0.7]
[1754778560225,48.18185505,182.42,182.39,0.72]
[1754778560449,48.18185505,182.42,182.39,0.02]
[1754778560667,48.18185505,182.42,182.4,0.7]
[1754778562562,48.21185505,182.42,182.4,0.7]
[1754778562731,53.08898417,182.42,182.39,0.02]
[1754778563231,0.03,182.4,182.39,0.02]
[1754778563543,42.71,182.4,182.39,0.02]
[1754778564030,47.58712912,182.4,182.39,0.02]
[1754778564463,53.06958526,182.4,182.39,0.02]
[1754778565833,48.19245614,182.4,182.39,0.02]
[1754778566154,53.06958526,182.4,182.39,0.02]
[1754778568573,48.19245614,182.4,182.39,0.02]
[1754778568732,53.06958526,182.4,182.39,0.02]
[1754778569761,10.38958526,182.4,182.39,0.02]
[1754778569933,53.04958526,182.4,182.39,0.02]
[1754778570269,53.04958526,182.4,182.39,0.73]
[1754778570463,48.17245614,182.4,182.39,0.73]
[1754778571835,53.04958526,182.4,182.39,0.02]
[1754778572533,48.17245614,182.4,182.39,0.02]
[1754778572841,53.04958526,182.4,182.39,0.02]
[1754778573842,48.17245614,182.4,182.39,0.73]
[1754778574136,53.04958526,182.4,182.39,0.73]
[1754778574459,53.04958526,182.4,182.39,0.02]
[1754778576058,48.17245614,182.4,182.39,0.02]
[1754778576254,53.04958526,182.4,182.39,0.02]
[1754778578669,55.24539726,182.4,182.39,0.02]
[1754778579261,70.35161283,182.4,182.39,0.02]
[1754778579652,30.87712912,182.38,182.37,1e-08]
[1754778579851,88.60334469,182.38,182.35,1e-08]
[1754778580166,19.98334469,182.36,182.35,1e-08]
[1754778580463,62.58334469,182.36,182.35,1e-08]
[1754778580834,62.76938434,182.36,182.35,1e-08]
[1754778581040,68.25304303,182.36,182.35,1e-08]
[1754778584058,48.26969834,182.36,182.35,1e-08]
[1754778584247,52.96078781,182.36,182.35,1e-08]
[1754778584569,52.96078781,182.36,182.35,0.71000001]
[1754778584570,78.94078781,182.36,182.35,0.71000001]
[1754778587461,52.94078781,182.36,182.35,0.71000001]
[1754778588670,52.94078781,182.36,182.35,1e-08]
[1754778588869,52.94078781,182.36,182.35,0.71000001]
[1754778591084,52.94078781,182.36,182.35,1e-08]
[1754778591255,52.94078781,182.36,182.33,1e-08]
[1754778591256,15.10621557,182.35,182.33,1e-08]
[1754778591456,52.31425824,182.34,182.33,1e-08]
[1754778591655,69.46805185,182.34,182.33,1e-08]
[1754778591963,75.13839046,182.34,182.33,1e-08]
[1754778592354,73.09081242,182.34,182.33,1e-08]
[1754778592559,72.90473398,182.34,182.33,1e-08]
[1754778593088,45.98334469,182.31,182.3,0.06]
[1754778593277,88.54334469,182.31,182.3,0.06]
[1754778593782,88.54334469,182.31,182.3,1e-08]
[1754778594081,94.02850732,182.31,182.3,1e-08]
[1754778595055,74.04516263,182.31,182.3,0.71000001]
[1754778595288,78.92229175,182.31,182.3,0.71000001]
[1754778595474,78.92229175,182.31,182.3,1e-08]
[1754778595981,78.92229175,182.31,182.3,0.71000001]
[1754778596279,94.02850732,182.31,182.3,1e-08]
[1754778596879,89.1513782,182.31,182.3,1e-08]
[1754778597064,94.02850732,182.31,182.3,1e-08]
[1754778599296,33.68193863,182.31,182.3,0.67000001]
[1754778599470,78.92229175,182.31,182.3,0.67000001]
[1754778599669,74.04516263,182.31,182.3,0.67000001]
[1754778599865,78.92229175,182.31,182.3,1e-08]
[1754778600277,41.10621557,182.27,182.26,0.06]
[1754778600512,94.00971106,182.27,182.26,0.06]
[1754778600673,26.0,182.24,182.23,0.06]
[1754778600869,68.54,182.24,182.23,0.73]